bitfinex-derivatives/quotes_BTCF0:USTF0_20251220
["timestamp","ask_amount","ask_price","bid_price","bid_amount"]
[1766258445905,0.02589599,88313.0,88300.0,0.25660354]
[1766258446091,0.02589599,88312.0,88300.0,0.25660354]
[1766258446292,0.01149815,88315.0,88300.0,0.25660354]
[1766258446496,0.02589545,88314.0,88300.0,0.25660354]
[1766258446696,0.02589545,88313.0,88300.0,0.25660354]
[1766258446904,0.02589545,88312.0,88300.0,0.25660354]
[1766258447201,0.01149815,88315.0,88300.0,0.25660354]
[1766258447403,0.02589483,88314.0,88300.0,0.25660354]
[1766258447610,0.02589483,88313.0,88300.0,0.25660354]
[1766258447802,0.02589483,88312.0,88300.0,0.25660354]
[1766258448111,0.01149815,88315.0,88300.0,0.02836]
[1766258448306,0.02589411,88314.0,88300.0,0.02836]
[1766258448502,4.11e-06,88313.0,88300.0,0.25660354]
[1766258448701,0.01149815,88315.0,88300.0,0.25660354]
[1766258449507,0.01149815,88315.0,88300.0,0.02836]
[1766258453006,0.06117647,88327.0,88300.0,0.02836]
[1766258453213,0.0113271,88324.0,88301.0,0.0113299]
[1766258453501,0.02248,88327.0,88304.0,0.0113295]
[1766258453695,0.02248,88327.0,88305.0,0.02836]
[1766258453893,0.00016985,88325.0,88307.0,0.00016985]
[1766258454107,0.01149675,88325.0,88307.0,0.00016985]
[1766258455407,0.0113273,88322.0,88307.0,0.00016985]
[1766258456106,0.0113277,88319.0,88307.0,0.00016985]
[1766258457212,0.00016985,88325.0,88307.0,0.00016985]
[1766258457424,0.22818473,88320.0,88307.0,5e-08]
[1766258457602,0.0113288,88310.0,88307.0,5e-08]
[1766258459309,0.0113283,88314.0,88307.0,5e-08]
[1766258460709,0.0113285,88312.0,88307.0,5e-08]
[1766258463813,0.011329,88309.0,88307.0,5e-08]
[1766258464002,0.05405197,88308.0,88275.0,1.44492]
[1766258464202,0.22835228,88290.0,88276.0,0.02836]
[1766258464401,0.0113309,88294.0,88276.0,0.02836]
[1766258464802,0.02836,88296.0,88276.0,0.02836]
[1766258465008,0.00016985,88295.0,88277.0,0.00016985]
[1766258466006,0.00016985,88295.0,88281.0,0.0113325]
[1766258467106,0.00016985,88295.0,88284.0,0.0113321]
[1766258469514,0.00168,88304.0,88284.0,0.0113321]
[1766258470418,0.00168,88304.0,88287.0,0.0113317]
[1766258470609,0.00016985,88302.0,88287.0,0.0113317]
[1766258472819,0.00168,88304.0,88287.0,0.0113317]
[1766258473913,0.00016941,88304.0,88287.0,0.0113317]
[1766258482823,0.00172,88309.0,88287.0,0.0113317]
[1766258483018,0.0113288,88311.0,88287.0,0.0113317]
[1766258483326,0.011329,88309.0,88287.0,0.0113317]
[1766258483819,0.011329,88309.0,88289.0,0.00016985]
[1766258484019,0.0113285,88313.0,88290.0,0.23968358]
[1766258484216,0.02565335,88312.0,88293.0,0.011331]
[1766258484520,0.0113285,88313.0,88294.0,0.02836]
[1766258484823,0.02565544,88312.0,88294.0,0.02836]
[1766258485018,0.0113285,88313.0,88294.0,0.02836]
[1766258485326,0.02565548,88312.0,88294.0,0.02836]
[1766258485627,0.0113285,88313.0,88294.0,0.02836]
[1766258485825,0.02565902,88312.0,88294.0,0.02836]
[1766258486025,0.0113285,88313.0,88294.0,0.02836]
[1766258486223,0.02565902,88312.0,88294.0,0.02836]
[1766258486424,0.02565902,88311.0,88294.0,0.02836]
[1766258486623,0.0113285,88313.0,88294.0,0.02836]
[1766258486921,0.0257029,88312.0,88294.0,0.02836]
[1766258487122,0.0257029,88311.0,88294.0,0.02836]
[1766258487322,0.0113285,88313.0,88294.0,0.02836]
[1766258487526,0.02570709,88312.0,88294.0,0.02836]
[1766258487721,0.02570709,88311.0,88294.0,0.02836]
[1766258487921,0.0113285,88313.0,88294.0,0.02836]
[1766258488126,0.0257071,88312.0,88294.0,0.02836]
[1766258488328,0.0257071,88311.0,88294.0,0.02836]
[1766258488526,0.0257071,88310.0,88294.0,0.02836]
[1766258488822,0.0113285,88313.0,88294.0,0.02836]
[1766258489017,0.02570827,88312.0,88294.0,0.02836]
[1766258489217,0.02570827,88311.0,88294.0,0.02836]
[1766258489418,0.02570827,88310.0,88294.0,0.02836]
[1766258489627,0.0113285,88313.0,88294.0,0.02836]
[1766258489835,0.02570925,88312.0,88294.0,0.02836]
[1766258490022,0.02570925,88311.0,88294.0,0.02836]
[1766258490222,0.02570925,88310.0,88294.0,0.02836]
[1766258490423,0.0113285,88313.0,88294.0,0.02836]
[1766258490629,0.02570937,88312.0,88294.0,0.02836]
[1766258490824,0.02570937,88311.0,88294.0,0.02836]
[1766258491127,0.02570937,88310.0,88294.0,0.02836]
[1766258491327,0.0113285,88313.0,88294.0,0.02836]
[1766258491518,0.02570952,88312.0,88294.0,0.02836]
[1766258491713,0.02570952,88311.0,88294.0,0.02836]
[1766258491917,0.02570952,88310.0,88294.0,0.02836]
[1766258492130,0.0113285,88313.0,88294.0,0.02836]
[1766258492426,0.02571046,88312.0,88294.0,0.02836]
[1766258492628,0.0113288,88310.0,88294.0,0.02836]
[1766258492826,0.02571189,88309.0,88294.0,0.02836]
[1766258493029,0.0113288,88310.0,88294.0,0.02836]
[1766258493215,0.02571189,88309.0,88294.0,0.02836]
[1766258493421,0.0113288,88310.0,88294.0,0.02836]
[1766258493622,0.02571329,88309.0,88294.0,0.02836]
[1766258493825,0.0113288,88310.0,88294.0,0.02836]
[1766258494127,0.02571321,88309.0,88294.0,0.02836]
[1766258494317,0.0113288,88310.0,88294.0,0.02836]
[1766258494519,0.0257153,88309.0,88294.0,0.02836]
[1766258494718,0.0113288,88310.0,88294.0,0.02836]
[1766258494920,0.0257153,88309.0,88294.0,0.02836]
[1766258495128,0.0113288,88310.0,88294.0,0.02836]
[1766258495317,0.02571517,88309.0,88294.0,0.02836]
[1766258495520,0.0113288,88310.0,88294.0,0.02836]
[1766258495731,0.02571919,88309.0,88294.0,0.02836]
[1766258495930,0.0113288,88310.0,88294.0,0.02836]
[1766258496131,0.02571919,88309.0,88294.0,0.02836]
[1766258496432,0.02572211,88308.0,88294.0,0.02836]
[1766258496633,0.0113288,88310.0,88294.0,0.02836]
[1766258496834,0.02572225,88309.0,88294.0,0.02836]
[1766258497133,0.02572225,88308.0,88294.0,0.02836]
[1766258497330,0.0113288,88310.0,88294.0,0.02836]
[1766258497533,0.02572426,88309.0,88294.0,0.02836]
[1766258497733,0.02572426,88308.0,88294.0,0.02836]
[1766258497934,0.0113288,88310.0,88294.0,0.02836]
[1766258498135,0.02572439,88309.0,88294.0,0.02836]
[1766258498334,0.0113288,88310.0,88294.0,0.02836]
[1766258498536,0.02572695,88309.0,88294.0,0.02836]
[1766258498840,0.0113288,88310.0,88294.0,0.02836]
[1766258499029,0.02572695,88309.0,88294.0,0.02836]
[1766258499333,0.0113288,88310.0,88294.0,0.02836]
[1766258499538,0.02573005,88309.0,88294.0,0.02836]
[1766258499736,0.0113288,88310.0,88294.0,0.02836]
[1766258499938,0.02573005,88309.0,88294.0,0.02836]
[1766258500238,0.0113288,88310.0,88294.0,0.02836]
[1766258500437,0.02573272,88309.0,88294.0,0.02836]
[1766258500636,0.02573272,88308.0,88294.0,0.02836]
[1766258500839,0.0113288,88310.0,88294.0,0.02836]
[1766258501138,0.02573272,88309.0,88294.0,0.02836]
[1766258501338,0.02573272,88308.0,88294.0,0.02836]
[1766258501640,0.0113288,88310.0,88294.0,0.02836]
[1766258501840,0.02573562,88309.0,88294.0,0.02836]
[1766258502039,0.02573562,88308.0,88294.0,0.02836]
[1766258502241,0.0113288,88310.0,88294.0,0.02836]
[1766258502448,0.02573951,88309.0,88294.0,0.02836]
[1766258502640,0.02573951,88308.0,88294.0,0.02836]
[1766258502842,0.0113288,88310.0,88294.0,0.02836]
[1766258503042,0.02573951,88309.0,88294.0,0.02836]
[1766258503233,0.02573951,88308.0,88294.0,0.02836]
[1766258503544,0.0113288,88310.0,88294.0,0.02836]
[1766258503732,0.02573993,88309.0,88294.0,0.02836]
[1766258503932,0.02573993,88308.0,88294.0,0.02836]
[1766258504240,0.0113288,88310.0,88294.0,0.02836]
[1766258504439,0.02574037,88309.0,88294.0,0.02836]
[1766258504639,0.02574037,88308.0,88294.0,0.02836]
[1766258504840,0.0113288,88310.0,88294.0,0.02836]
[1766258505040,0.02574037,88309.0,88294.0,0.02836]
[1766258505241,0.02574037,88308.0,88294.0,0.02836]
[1766258505443,0.0113288,88310.0,88294.0,0.02836]
[1766258505639,0.02574075,88309.0,88294.0,0.02836]
[1766258505838,0.02574075,88308.0,88294.0,0.02836]
[1766258506043,0.0113288,88310.0,88294.0,0.02836]
[1766258506245,0.02574075,88309.0,88294.0,0.02836]
[1766258506444,0.02574075,88308.0,88294.0,0.02836]
[1766258506633,0.0113288,88310.0,88294.0,0.02836]
[1766258506834,0.02574104,88309.0,88294.0,0.02836]
[1766258507041,0.02574104,88308.0,88294.0,0.02836]
[1766258507241,0.0113288,88310.0,88294.0,0.02836]
[1766258507445,0.02574197,88309.0,88294.0,0.02836]
[1766258507743,0.02574197,88308.0,88294.0,0.02836]
[1766258507943,0.0113288,88310.0,88294.0,0.02836]
[1766258508133,0.02574197,88309.0,88294.0,0.02836]
[1766258508340,0.02574197,88308.0,88294.0,0.02836]
[1766258508534,0.02574197,88307.0,88294.0,0.02836]
[1766258508735,0.0113288,88310.0,88294.0,0.02836]
[1766258509044,0.02574286,88309.0,88294.0,0.02836]
[1766258509241,0.02574286,88308.0,88294.0,0.02836]
[1766258509441,0.02574286,88307.0,88294.0,0.02836]
[1766258509642,0.0113288,88310.0,88294.0,0.02836]
[1766258509844,0.02574388,88309.0,88294.0,0.02836]
[1766258510034,0.02574388,88308.0,88294.0,0.02836]
[1766258510237,0.02574388,88307.0,88294.0,0.02836]
[1766258510437,0.0113288,88310.0,88294.0,0.02836]
[1766258510639,0.0257451,88309.0,88294.0,0.02836]
[1766258510839,0.0257451,88308.0,88294.0,0.02836]
[1766258511042,0.0257451,88307.0,88294.0,0.02836]
[1766258511335,0.02574669,88306.0,88294.0,0.02836]
[1766258511549,0.0113288,88310.0,88294.0,0.02836]
[1766258511748,0.02574674,88309.0,88294.0,0.02836]
[1766258511948,0.02574674,88308.0,88294.0,0.02836]
[1766258512152,0.02574674,88307.0,88294.0,0.02836]
[1766258512449,0.02574877,88306.0,88294.0,0.02836]
[1766258512650,0.0113288,88310.0,88294.0,0.02836]
[1766258512850,0.02574877,88309.0,88294.0,0.02836]
[1766258513053,0.02574877,88308.0,88294.0,0.02836]
[1766258513258,0.02574877,88307.0,88294.0,0.02836]
[1766258513444,0.02574877,88306.0,88294.0,0.02836]
[1766258513644,0.0113288,88310.0,88294.0,0.02836]
[1766258513844,0.02575136,88309.0,88294.0,0.02836]
[1766258514048,0.02575136,88308.0,88294.0,0.02836]
[1766258514251,0.02575136,88307.0,88294.0,0.02836]
[1766258514457,0.02575136,88306.0,88294.0,0.02836]
[1766258514752,0.0113288,88310.0,88294.0,0.02836]
[1766258514944,0.02575133,88309.0,88294.0,0.02836]
[1766258515145,0.02575133,88308.0,88294.0,0.02836]
[1766258515348,0.02575133,88307.0,88294.0,0.02836]
[1766258515549,0.02575133,88306.0,88294.0,0.02836]
[1766258515750,0.0113288,88310.0,88294.0,0.02836]
[1766258515950,0.02575127,88309.0,88294.0,0.02836]
[1766258516154,0.02575127,88308.0,88294.0,0.02836]
[1766258516347,0.02575127,88307.0,88294.0,0.02836]
[1766258516547,0.02575127,88306.0,88294.0,0.02836]
[1766258516742,0.02582099,88305.0,88294.0,0.02836]
[1766258516955,0.0113293,88306.0,88294.0,0.02836]
[1766258517152,0.02582099,88305.0,88294.0,0.02836]
[1766258517347,0.0113289,88310.0,88294.0,0.02836]
[1766258517546,0.0113291,88308.0,88294.0,0.02836]
[1766258517748,0.02582033,88307.0,88294.0,0.02836]
[1766258521353,0.02582033,88306.0,88294.0,0.02836]
[1766258521656,0.0396881,88316.0,88294.0,0.02836]
[1766258521858,0.0113283,88314.0,88294.0,0.02836]
[1766258522155,0.0113286,88312.0,88294.0,0.02836]
[1766258522456,0.02581927,88311.0,88294.0,0.02836]
[1766258522656,0.0113286,88312.0,88294.0,0.02836]
[1766258522657,0.02581927,88310.0,88294.0,0.02836]
[1766258522855,0.02581927,88309.0,88294.0,0.02836]
[1766258523055,0.02581927,88308.0,88294.0,0.02836]
[1766258523255,0.02581927,88307.0,88294.0,0.02836]
[1766258523555,0.0113286,88312.0,88294.0,0.02836]
[1766258523756,0.02581914,88311.0,88294.0,0.02836]
[1766258524052,0.02581914,88310.0,88294.0,0.02836]
[1766258524257,0.0113296,88304.0,88294.0,0.02836]
[1766258524457,0.0113296,88304.0,88292.0,0.02836]
[1766258524758,0.01133,88301.0,88290.0,0.02836]
[1766258525552,0.0113302,88299.0,88289.0,0.00016985]
[1766258525750,0.0113302,88299.0,88289.0,0.02852985]
[1766258526250,0.22821429,88300.0,88289.0,0.02852985]
[1766258528156,0.22821429,88300.0,88282.0,0.02836]
[1766258528157,0.0113302,88299.0,88282.0,0.02836]
[1766258528555,0.22821429,88300.0,88282.0,0.02836]
[1766258529057,0.22821429,88300.0,88282.0,0.02852985]
[1766258529250,0.00016985,88300.0,88282.0,0.02852985]
[1766258529452,0.22838414,88300.0,88282.0,0.02852985]
[1766258534855,0.23971424,88300.0,88282.0,0.02852985]
[1766258537572,0.23978898,88300.0,88282.0,0.02852985]
[1766258537964,0.0113305,88297.0,88282.0,0.02852985]
[1766258555482,0.01150005,88300.0,88282.0,0.02852985]
[1766258555671,0.02591943,88299.0,88282.0,0.02852985]
[1766258555874,0.23978908,88300.0,88282.0,0.02852985]
[1766258555875,0.02591943,88298.0,88282.0,0.02852985]
[1766258556081,0.23978908,88300.0,88282.0,0.02852985]
[1766258556281,0.02592172,88299.0,88282.0,0.02852985]
[1766258556484,0.02592172,88298.0,88282.0,0.02852985]
[1766258556682,0.23978908,88300.0,88282.0,0.02852985]
[1766258556883,0.02592172,88299.0,88282.0,0.02852985]
[1766258557086,0.02592172,88298.0,88282.0,0.02852985]
[1766258557284,0.23978908,88300.0,88282.0,0.02852985]
[1766258557485,0.0113304,88298.0,88282.0,0.02852985]
[1766258558589,0.0113304,88298.0,88282.0,0.02848985]
[1766258559086,0.02592925,88297.0,88282.0,0.02848985]
[1766258559277,0.0113304,88298.0,88282.0,0.02848985]
[1766258559479,0.02592966,88297.0,88282.0,0.02848985]
[1766258559683,0.0113304,88298.0,88282.0,0.02848985]
[1766258559988,0.02592967,88297.0,88282.0,0.02848985]
[1766258560183,0.0113304,88298.0,88282.0,0.02848985]
[1766258560383,0.0259299,88297.0,88282.0,0.02848985]
[1766258560580,0.0113304,88298.0,88282.0,0.02848985]
[1766258560886,0.0259299,88297.0,88282.0,0.02848985]
[1766258561087,0.0113304,88298.0,88282.0,0.02848985]
[1766258561389,0.02593017,88297.0,88282.0,0.02848985]
[1766258561588,0.0113304,88298.0,88282.0,0.02848985]
[1766258561790,0.02593017,88297.0,88282.0,0.02848985]
[1766258562089,0.0113304,88298.0,88282.0,0.02848985]
[1766258562280,0.02593049,88297.0,88282.0,0.02848985]
[1766258562587,0.0113304,88298.0,88282.0,0.02848985]
[1766258562787,0.02593049,88297.0,88282.0,0.02848985]
[1766258562990,0.0113304,88298.0,88282.0,0.02848985]
[1766258563290,0.02593049,88297.0,88282.0,0.02848985]
[1766258563487,0.0113304,88298.0,88282.0,0.02848985]
[1766258563693,0.02593086,88297.0,88282.0,0.02848985]
[1766258563991,0.0113304,88298.0,88282.0,0.02848985]
[1766258564177,0.02593086,88297.0,88282.0,0.02848985]
[1766258564382,0.0113304,88298.0,88282.0,0.02848985]
[1766258564582,0.02593131,88297.0,88282.0,0.02848985]
[1766258564890,0.0113304,88298.0,88282.0,0.02848985]
[1766258565092,0.02593131,88297.0,88282.0,0.02848985]
[1766258565281,0.0113304,88298.0,88282.0,0.02848985]
[1766258565486,0.02593123,88297.0,88282.0,0.02848985]
[1766258565690,0.0113304,88298.0,88282.0,0.02848985]
[1766258565893,0.02593124,88297.0,88282.0,0.02848985]
[1766258566077,0.0113304,88298.0,88282.0,0.02848985]
[1766258566281,0.02593121,88297.0,88282.0,0.02848985]
[1766258566481,0.0113304,88298.0,88282.0,0.02848985]
[1766258566681,0.02593122,88297.0,88282.0,0.02848985]
[1766258566894,0.0113304,88298.0,88282.0,0.02848985]
[1766258567087,0.02593123,88297.0,88282.0,0.02848985]
[1766258567291,0.0113304,88298.0,88282.0,0.02848985]
[1766258567585,0.02593129,88297.0,88282.0,0.02848985]
[1766258567788,0.0113304,88298.0,88282.0,0.02848985]
[1766258567983,0.02593129,88297.0,88282.0,0.02848985]
[1766258568184,0.0113304,88298.0,88282.0,0.02848985]
[1766258568381,0.0259313,88297.0,88282.0,0.02848985]
[1766258568582,0.0113304,88298.0,88282.0,0.02848985]
[1766258568782,0.0259313,88297.0,88282.0,0.02848985]
[1766258568990,0.0113304,88298.0,88282.0,0.02848985]
[1766258569194,0.0259315,88297.0,88282.0,0.02848985]
[1766258569390,0.0113304,88298.0,88282.0,0.02848985]
[1766258569590,0.02593139,88297.0,88282.0,0.02848985]
[1766258569791,0.0113304,88298.0,88282.0,0.02848985]
[1766258570092,0.02593141,88297.0,88282.0,0.02848985]
[1766258570292,0.0113304,88298.0,88282.0,0.02848985]
[1766258570494,0.02593149,88297.0,88282.0,0.02848985]
[1766258570693,0.0113304,88298.0,88282.0,0.02848985]
[1766258570891,0.02593149,88297.0,88282.0,0.02848985]
[1766258571091,0.0113304,88298.0,88282.0,0.02848985]
[1766258571394,0.02593122,88297.0,88282.0,0.02848985]
[1766258571595,0.0113304,88298.0,88282.0,0.02848985]
[1766258571796,0.02593122,88297.0,88282.0,0.02848985]
[1766258572094,0.0113304,88298.0,88282.0,0.02848985]
[1766258572296,0.02593113,88297.0,88282.0,0.02848985]
[1766258572595,0.0113304,88298.0,88282.0,0.02848985]
[1766258572795,0.02593151,88297.0,88282.0,0.02848985]
[1766258573093,0.0113304,88298.0,88282.0,0.02848985]
[1766258574495,0.00016985,88300.0,88283.0,0.0113323]
[1766258574694,0.00016985,88300.0,88282.0,0.02848985]
[1766258574695,4.5e-07,88300.0,88286.0,0.0113318]
[1766258574888,0.01128985,88306.0,88286.0,0.0113318]
[1766258575290,0.01124985,88306.0,88286.0,0.0113318]
[1766258577392,0.0113289,88310.0,88290.0,0.22828522]
[1766258577598,0.0113289,88310.0,88291.0,0.02836]
[1766258581600,0.00496,88316.0,88291.0,0.02836]
[1766258582002,0.0113298,88303.0,88291.0,0.02836]
[1766258583500,0.0113295,88305.0,88291.0,0.02836]
[1766258584305,0.0113289,88309.0,88291.0,0.02836]
[1766258584602,0.0113285,88313.0,88291.0,0.02836]
[1766258586293,0.0113288,88310.0,88291.0,0.02836]
[1766258586802,0.0257122,88309.0,88291.0,0.02836]
[1766258587100,0.0257122,88308.0,88291.0,0.02836]
[1766258587304,0.0257122,88307.0,88291.0,0.02836]
[1766258587498,0.0257122,88306.0,88291.0,0.02836]
[1766258587802,0.0257122,88305.0,88291.0,0.02836]
[1766258588002,0.0257122,88304.0,88291.0,0.02836]
[1766258588199,0.0113292,88307.0,88291.0,0.02836]
[1766258588399,0.0257104,88306.0,88291.0,0.02836]
[1766258588602,0.0113292,88307.0,88291.0,0.02836]
[1766258588603,0.0257104,88305.0,88291.0,0.02836]
[1766258588793,0.0113292,88307.0,88291.0,0.02836]
[1766258588996,0.02571038,88306.0,88291.0,0.02836]
[1766258589306,0.02571038,88305.0,88291.0,0.02836]
[1766258589505,0.0113292,88307.0,88291.0,0.02836]
[1766258589811,0.02570987,88306.0,88291.0,0.02836]
[1766258590001,0.0113292,88307.0,88291.0,0.02836]
[1766258590002,0.02570987,88305.0,88291.0,0.02836]
[1766258590308,0.0113287,88311.0,88291.0,0.02836]
[1766258590503,0.011329,88309.0,88291.0,0.02836]
[1766258590809,0.0257096,88308.0,88291.0,0.02836]
[1766258591108,0.0257096,88307.0,88291.0,0.02836]
[1766258591406,0.0257096,88306.0,88291.0,0.02836]
[1766258591707,0.0257096,88305.0,88291.0,0.02836]
[1766258591900,0.011329,88309.0,88291.0,0.02836]
[1766258592100,0.02570946,88308.0,88291.0,0.02836]
[1766258592303,0.02570946,88307.0,88291.0,0.02836]
[1766258592510,0.02570946,88306.0,88291.0,0.02836]
[1766258592706,0.02570946,88305.0,88291.0,0.02836]
[1766258592902,0.011329,88309.0,88291.0,0.02836]
[1766258593208,0.0257094,88308.0,88291.0,0.02836]
[1766258593506,0.0257094,88307.0,88291.0,0.02836]
[1766258593706,0.0257094,88306.0,88291.0,0.02836]
[1766258593907,0.0257094,88305.0,88291.0,0.02836]
[1766258594100,0.011329,88309.0,88291.0,0.02836]
[1766258594300,0.02570986,88308.0,88291.0,0.02836]
[1766258594508,0.02570986,88307.0,88291.0,0.02836]
[1766258594708,0.02570986,88306.0,88291.0,0.02836]
[1766258594907,0.02570986,88305.0,88291.0,0.02836]
[1766258595110,0.011329,88309.0,88291.0,0.02836]
[1766258595310,0.0113292,88307.0,88291.0,0.02836]
[1766258595502,0.02571037,88306.0,88291.0,0.02836]
[1766258595704,0.02571037,88305.0,88291.0,0.02836]
[1766258595906,0.0113292,88307.0,88291.0,0.02836]
[1766258596100,0.02571052,88306.0,88291.0,0.02836]
[1766258596300,0.02571052,88305.0,88291.0,0.02836]
[1766258596502,0.0113292,88307.0,88291.0,0.02836]
[1766258596697,0.02571125,88306.0,88291.0,0.02836]
[1766258596911,0.02571125,88305.0,88291.0,0.02836]
[1766258597106,0.0113292,88307.0,88291.0,0.02836]
[1766258597319,0.0257118,88306.0,88291.0,0.02836]
[1766258600418,0.02571561,88305.0,88291.0,0.02836]
[1766258600615,0.02571561,88304.0,88291.0,0.02836]
[1766258600816,0.0113292,88307.0,88291.0,0.02836]
[1766258601116,0.02571568,88306.0,88291.0,0.02836]
[1766258601417,0.02571568,88305.0,88291.0,0.02836]
[1766258601618,0.02571568,88304.0,88291.0,0.02836]
[1766258601803,0.0113292,88307.0,88291.0,0.02836]
[1766258602006,0.02571714,88306.0,88291.0,0.02836]
[1766258602208,0.02571714,88305.0,88291.0,0.02836]
[1766258602409,0.02571714,88304.0,88291.0,0.02836]
[1766258602611,0.0113292,88307.0,88291.0,0.02836]
[1766258602816,0.02571894,88306.0,88291.0,0.02836]
[1766258603018,0.02571894,88305.0,88291.0,0.02836]
[1766258603216,0.02571894,88304.0,88291.0,0.02836]
[1766258603409,0.02571894,88303.0,88291.0,0.02836]
[1766258603611,0.0113292,88307.0,88291.0,0.02836]
[1766258603822,0.02572174,88306.0,88291.0,0.02836]
[1766258604016,0.02572174,88305.0,88291.0,0.02836]
[1766258604218,0.02572174,88304.0,88291.0,0.02836]
[1766258604417,0.02572174,88303.0,88291.0,0.02836]
[1766258604617,0.0113292,88307.0,88291.0,0.02836]
[1766258604818,0.02572452,88306.0,88291.0,0.02836]
[1766258605019,0.02572452,88305.0,88291.0,0.02836]
[1766258605217,0.02572452,88304.0,88291.0,0.02836]
[1766258605518,0.02572452,88303.0,88291.0,0.02836]
[1766258605716,0.0113292,88307.0,88291.0,0.02836]
[1766258605912,0.02572534,88306.0,88291.0,0.02836]
[1766258606220,0.02572534,88305.0,88291.0,0.02836]
[1766258606420,0.02572534,88304.0,88291.0,0.02836]
[1766258606723,0.02572534,88303.0,88291.0,0.02836]
[1766258607020,0.0113292,88307.0,88291.0,0.02836]
[1766258607221,0.02575454,88306.0,88291.0,0.02836]
[1766258607413,0.02575454,88305.0,88291.0,0.02836]
[1766258607613,0.02575454,88304.0,88291.0,0.02836]
[1766258607814,0.02575454,88303.0,88291.0,0.02836]
[1766258608113,0.0113292,88307.0,88291.0,0.02836]
[1766258608312,0.02575547,88306.0,88291.0,0.02836]
[1766258608513,0.02575547,88305.0,88291.0,0.02836]
[1766258608712,0.02575547,88304.0,88291.0,0.02836]
[1766258608912,0.02575547,88303.0,88291.0,0.02836]
[1766258609122,0.0113292,88307.0,88291.0,0.02836]
[1766258609324,0.02575559,88306.0,88291.0,0.02836]
[1766258609522,0.02575559,88305.0,88291.0,0.02836]
[1766258609718,0.02575559,88304.0,88291.0,0.02836]
[1766258609920,0.02575559,88303.0,88291.0,0.02836]
[1766258610116,0.02575576,88302.0,88291.0,0.02836]
[1766258610321,0.0113296,88304.0,88291.0,0.02836]
[1766258610522,0.02575581,88303.0,88291.0,0.02836]
[1766258610724,0.02575581,88302.0,88291.0,0.02836]
[1766258610923,0.0113296,88304.0,88291.0,0.02836]
[1766258611220,0.02575597,88303.0,88291.0,0.02836]
[1766258611423,0.02575597,88302.0,88291.0,0.02836]
[1766258611613,0.0113296,88304.0,88291.0,0.02836]
[1766258611814,0.02575595,88303.0,88291.0,0.02836]
[1766258612013,0.02575595,88302.0,88291.0,0.02836]
[1766258612213,0.0113296,88304.0,88291.0,0.02836]
[1766258612413,0.02575639,88303.0,88291.0,0.02836]
[1766258612628,0.02575639,88302.0,88291.0,0.02836]
[1766258612816,0.0113296,88304.0,88291.0,0.02836]
[1766258613018,0.02575639,88303.0,88291.0,0.02836]
[1766258613317,0.02575856,88302.0,88289.0,0.02836]
[1766258613525,0.22822785,88310.0,88289.0,0.02836]
[1766258613715,0.02575856,88309.0,88289.0,0.02836]
[1766258613916,0.02575856,88308.0,88289.0,0.02836]
[1766258614115,0.02575856,88307.0,88289.0,0.02836]
[1766258614316,0.0113296,88305.0,88289.0,0.02836]
[1766258614524,0.02575856,88304.0,88289.0,0.02836]
[1766258614826,0.02575856,88303.0,88289.0,0.02836]
[1766258615035,0.0113296,88305.0,88289.0,0.02836]
[1766258615217,0.02575779,88304.0,88289.0,0.02836]
[1766258615418,0.02575779,88303.0,88289.0,0.02836]
[1766258615726,0.0113296,88305.0,88289.0,0.02836]
[1766258615927,0.02575672,88304.0,88289.0,0.02836]
[1766258616132,0.02575672,88303.0,88289.0,0.02836]
[1766258616427,0.0113296,88305.0,88289.0,0.02836]
[1766258616628,0.02575642,88304.0,88289.0,0.02836]
[1766258616817,0.0113289,88309.0,88289.0,0.02836]
[1766258617020,0.02575582,88308.0,88289.0,0.02836]
[1766258617219,0.02575582,88307.0,88289.0,0.02836]
[1766258617420,0.02575582,88306.0,88289.0,0.02836]
[1766258617620,0.02575582,88305.0,88289.0,0.02836]
[1766258617821,0.02575582,88304.0,88289.0,0.02836]
[1766258618114,0.0113289,88309.0,88289.0,0.02836]
[1766258618418,0.0113292,88307.0,88289.0,0.02836]
[1766258618619,0.02575586,88306.0,88289.0,0.02836]
[1766258618827,0.02575586,88305.0,88289.0,0.02836]
[1766258619030,0.02575586,88304.0,88289.0,0.02836]
[1766258619230,0.0113292,88307.0,88289.0,0.0396915]
[1766258619427,0.02575597,88306.0,88289.0,0.0396915]
[1766258619730,0.02575597,88305.0,88289.0,0.0396915]
[1766258619928,0.02575597,88304.0,88289.0,0.0396915]
[1766258620130,0.0113291,88308.0,88289.0,0.0396915]
[1766258620430,0.02575608,88307.0,88289.0,0.0396915]
[1766258620628,0.02575608,88306.0,88289.0,0.0396915]
[1766258620828,0.02575608,88305.0,88289.0,0.0396915]
[1766258621031,0.02575608,88304.0,88289.0,0.02836]
[1766258621231,0.0113291,88308.0,88289.0,0.02836]
[1766258621528,0.02575631,88307.0,88289.0,0.02836]
[1766258621728,0.0113291,88308.0,88289.0,0.02836]
[1766258621729,0.02575631,88306.0,88289.0,0.02836]
[1766258622022,0.02575631,88305.0,88289.0,0.02836]
[1766258622228,0.02575631,88304.0,88289.0,0.02836]
[1766258622429,0.0113294,88305.0,88289.0,0.02836]
[1766258622621,0.02575646,88304.0,88289.0,0.02836]
[1766258622823,0.0113294,88305.0,88289.0,0.02836]
[1766258623021,0.02575646,88304.0,88289.0,0.02836]
[1766258623226,0.02575663,88303.0,88289.0,0.02836]
[1766258623431,0.02575663,88302.0,88289.0,0.02836]
[1766258623731,0.0113294,88305.0,88289.0,0.02836]
[1766258623925,0.02575663,88304.0,88289.0,0.02836]
[1766258624121,0.02575663,88303.0,88289.0,0.02836]
[1766258624432,0.02575663,88302.0,88289.0,0.02836]
[1766258624629,0.0113294,88305.0,88289.0,0.02836]
[1766258624817,0.0257569,88304.0,88289.0,0.02836]
[1766258625020,0.0257569,88303.0,88289.0,0.02836]
[1766258625221,0.0257569,88302.0,88289.0,0.02836]
[1766258625421,0.0113294,88305.0,88289.0,0.02836]
[1766258625731,0.0113297,88303.0,88289.0,0.02836]
[1766258625921,0.02575685,88302.0,88289.0,0.02836]
[1766258626122,0.0113302,88299.0,88289.0,0.02836]
[1766258628831,0.02575717,88298.0,88289.0,0.02836]
[1766258629033,0.0113298,88303.0,88289.0,0.02836]
[1766258629332,0.01133,88301.0,88289.0,0.02836]
[1766258629523,0.02575729,88300.0,88289.0,0.02836]
[1766258629724,0.02575729,88299.0,88289.0,0.02836]
[1766258629929,0.02575729,88298.0,88289.0,0.02836]
[1766258630132,0.01133,88301.0,88289.0,0.02836]
[1766258630330,0.02575654,88300.0,88289.0,0.02836]
[1766258630530,0.01133,88301.0,88289.0,0.02836]